[Event "Grand Prix Romania 1st Stage 2024"]
[Site "Bucuresti"]
[Date "2024.03.23"]
[Round "3.33"]
[White "Nevednichy, Vladislav"]
[Black "Saioc, David"]
[Result "1-0"]
[ECO "B52"]
[WhiteElo "2445"]
[BlackElo "2023"]
[Annotator "TA"]
[PlyCount "127"]
[EventDate "2024.03.20"]
[EventType "swiss"]
[EventCountry "ROU"]
[SourceTitle "playchess.com"]
[Source "ChessBase"]
[SourceQuality "1"]
[TimeControl "900+5"]

{[%evp 32,127,64,74,75,82,70,42,83,-24,213,197,238,252,239,249,238,246,259,233,246,262,258,258,384,376,368,359,366,374,397,311,306,290,302,258,254,243,308,310,283,181,177,185,182,139,126,89,127,129,200,208,208,208,201,172,181,136,136,135,613,615,638,617,485,497,29954,29956,29953,29949,7753,7635,5073,4341,1698,773,773,773,5418,6702,6493,6702,29973,29974,29973,12828,12739,12829,12610,10283,29978,29979,29980,29981,29980,29981,29981,29977]} 1. e4 {[%emt 0:00:01]} c5 {[%emt 0:00:01]} 2. Nf3 {[%emt 0:00:02]} d6 {[%emt 0:00:01]} 3. Bb5+ {[%emt 0:00:03]} Bd7 {[%emt 0:00:02]} 4. c4 {[%emt 0:00:03]} Nf6 {[%emt 0:00:04]} 5. Nc3 {[%emt 0:00:02]} g6 {[%emt 0:00:04]} 6. d4 {[%emt 0:00:01]} cxd4 {[%emt 0:00:02]} 7. Nxd4 {[%emt 0:00:01]} Bg7 {[%emt 0:00:02]} 8. O-O {[%emt 0:00:02]} O-O {[%emt 0:00:10]} 9. f3 {[%emt 0:00:09]} a6 {[%emt 0:00:01]} 10. Bxd7 {[%emt 0:00:04]} Qxd7 {[%emt 0:00:02]} 11. Be3 {[%emt 0:00:21]} Qc7 {[%emt 0:01:10]} 12. Rc1 {[%emt 0:00:11]} e6 {[%emt 0:02:12]} 13. Qd2 {[%emt 0:00:43]} Rd8 {[%emt 0:01:23]} 14. Rfd1 {[%emt 0:00:17]} Nbd7 {[%emt 0:00:48]} 15. b3 {[%emt 0:00:10]} Rac8 {[%emt 0:03:15]} 16. Nde2 {[%emt 0:00:23]} Ne5 {[%emt 0:02:07]} 17. Na4 {[%emt 0:00:11]} Qb8 {[%emt 0:00:32]} 18. Bb6 {[%emt 0:00:22]} Rd7 {[%emt 0:00:06]} 19. Qe3 {[%emt 0:01:28]} Nc6 {[%emt 0:00:45]} 20. Qf2 {[%emt 0:00:16]} (20. Rc2 $16) 20... Ne7 $2 {[%emt 0:01:17]} (20... d5 $11 {and Black has nothing to worry.}) 21. Ba7 $1 $18 {[%emt 0:00:15]} Qa8 {[%emt 0:00:04]} 22. Be3 {[%emt 0:00:05]} Rc6 {[%emt 0:00:23]} 23. Nd4 {[%emt 0:00:24]} Rcc7 {[%emt 0:00:25]} 24. Nb6 {[%emt 0:00:03]} Qd8 {[%emt 0:00:13]} 25. Ne2 {[%emt 0:00:17]} Nc8 {[%emt 0:00:14]} 26. Nxd7 {[%emt 0:00:07]} Rxd7 {[%emt 0:00:02]} 27. Rd2 {[%emt 0:00:11]} d5 {[%emt 0:00:31]} (27... Ne8 $142 28. Kh1 Be5) 28. cxd5 $18 {[%emt 0:00:37]} exd5 {[%emt 0:00:04]} 29. e5 {[%emt 0:00:04]} Ne8 {[%emt 0:00:08]} 30. f4 {[%emt 0:00:09]} Ne7 {[%emt 0:00:07]} 31. Nd4 {[%emt 0:00:15]} Nc7 {[%emt 0:00:21]} 32. Rdc2 {[%emt 0:01:18]} Ne6 {[%emt 0:00:12]} 33. f5 {[%emt 0:01:12]} Nxd4 {[%emt 0:00:13]} 34. Bxd4 {[%emt 0:00:02]} Nc6 {[%emt 0:00:45]} 35. f6 {[%emt 0:01:44]} Bh6 {[%emt 0:00:02]} 36. Rxc6 {[%emt 0:00:12]} bxc6 {[%emt 0:00:02]} 37. Rxc6 {[%emt 0:00:02]} Rc7 {[%emt 0:00:12]} 38. Rxc7 {[%emt 0:00:33]} (38. Rxa6 $2 Rc1+ $19) 38... Qxc7 {[%emt 0:00:03]} 39. g3 {[%emt 0:00:08]} Qc1+ {[%emt 0:00:06]} 40. Kg2 {[%emt 0:00:04]} Qb1 {[%emt 0:00:02]} (40... Qc8 $16 {was called for.} 41. Bc5 Bc1) 41. Qe2 $18 {[%emt 0:00:12]} Qf5 {[%emt 0:00:07]} 42. b4 {[%emt 0:00:19]} (42. Qxa6 $2 Qe4+ 43. Kh3 Qxd4 $19) 42... Bf8 {[%emt 0:00:02]} 43. a3 {[%emt 0:00:06]} (43. Qxa6 $2 Qe4+ (43... Bxb4 44. Qa8+ Bf8 45. Qxd5 $16) 44. Kh3 Qxd4 $19) 43... h5 {[%emt 0:00:01]} 44. h4 {[%emt 0:00:09]} (44. Qxa6 $2 Qe4+ 45. Kf1 Qxd4 $19) 44... Kh7 {[%emt 0:00:06]} 45. Kh2 {[%emt 0:00:08]} (45. Qxa6 $2 Qe4+ 46. Kh2 Qxd4 $19) 45... Qb1 $2 {[%emt 0:00:13][%mdl 8192]} (45... Kg8 $16 46. Kg1 (46. Qxa6 $2 Qc2+ 47. Kh3 Qd1 $19) 46... Qb1+ 47. Kh2 Qf5) 46. e6 $18 {[%emt 0:00:31]} (46. Qxa6 $2 Qc2+ 47. Kh1 (47. Kh3 $2 Qd1 $19) 47... Qe4+ 48. Kh2 Qxd4 $19) 46... fxe6 {[%emt 0:00:01]} 47. Qxe6 {[%emt 0:00:04]} (47. Qxa6 Qc2+ 48. Kh3 Qf5+ 49. Kh2 Qc2+ 50. Kh3 Qf5+ 51. Kh2 Qc2+ $11) 47... Qc2+ {[%emt 0:00:01]} 48. Kh3 {[%emt 0:00:04]} Qf5+ {[%emt 0:00:02]} (48... Kh8 $18 49. Qxd5 Qd1) 49. Qxf5 {[%emt 0:00:02]} gxf5 {[%emt 0:00:01]} 50. Bc5 {[%emt 0:00:11]} Bh6 {[%emt 0:00:21]} 51. f7 {[%emt 0:00:09]} d4 {[%emt 0:00:02]} 52. Bxd4 {[%emt 0:00:06]} (52. f8=N+ Bxf8 53. Kg2 (53. Bxf8 $2 {too greedy.} d3 $19) 53... d3 $18) 52... Kg6 {[%emt 0:00:01] [#]} 53. Be3 {[%emt 0:00:28]} (53. a4 $142 $1 {[%mdl 512]} Kxf7 (53... f4 54. b5) 54. b5 axb5 55. a5 (55. axb5 Ke6 $18)) 53... Bg7 $18 {[%emt 0:00:09]} 54. a4 {[%emt 0:00:05]} Kxf7 {[%emt 0:00:02]} 55. b5 {[%emt 0:00:03]} axb5 {[%emt 0:00:10]} 56. axb5 {[%emt 0:00:28]} Be5 {[%emt 0:00:02]} 57. b6 {[%emt 0:00:09]} Ke6 {[%emt 0:00:01]} 58. Kg2 {[%emt 0:00:04]} (58. b7 $142 Kd7 59. Ba7 Kc6 60. b8=Q (60. b8=B Bg7 $18) (60. b8=R f4 $18) 60... Bxb8 61. Bxb8 Kb7 62. Bf4 Kc6 63. Kg2) 58... Kd5 {[%emt 0:00:11] [#]} 59. Kf3 $1 {[%emt 0:00:06]} Kc6 {[%emt 0:00:01]} 60. Bf4 {[%emt 0:00:10]} Bf6 {[%emt 0:00:01]} 61. Bc7 {[%emt 0:00:03]} Bd4 {[%emt 0:00:11]} 62. Kf4 {[%emt 0:00:03]} Bf2 {[%emt 0:00:06]} 63. Kxf5 {[%emt 0:00:05]} Kb7 {[%emt 0:00:05]} 64. Ke4 {[%emt 0:04:08]} 1-0

[Event "Grand Prix Romania 1st Stage 2024"]
[Site "Bucuresti"]
[Date "2024.03.23"]
[Round "3.34"]
[White "Luncasu, Raul-Ionut"]
[Black "Stepanencu, Nicodim-Cosmin"]
[Result "0-1"]
[ECO "B86"]
[WhiteElo "2155"]
[BlackElo "2278"]
[Annotator "RC"]
[PlyCount "56"]
[EventDate "2024.03.20"]
[EventType "swiss"]
[EventCountry "ROU"]
[SourceTitle "playchess.com"]
[Source "ChessBase"]
[SourceQuality "1"]
[TimeControl "900+5"]

1. e4 {[%emt 0:00:02]} c5 {[%emt 0:00:03]} 2. Nf3 {[%emt 0:00:02]} d6 {[%emt 0:00:02]} 3. d4 {[%emt 0:00:01]} cxd4 {[%emt 0:00:02]} 4. Nxd4 {[%emt 0:00:01]} Nf6 {[%emt 0:00:01]} 5. Nc3 {[%emt 0:00:01]} a6 {[%emt 0:00:01]} 6. Bc4 {[%emt 0:00:10]} e6 {[%emt 0:00:06]} 7. Be3 {[%emt 0:00:16]} Be7 {[%emt 0:01:24]} 8. Qf3 {[%emt 0:00:26]} Nc6 {[%emt 0:02:16]} 9. Qg3 {[%emt 0:00:25]} O-O {[%emt 0:00:21]} 10. O-O-O {[%emt 0:00:44]} Qc7 {[%emt 0:01:34]} 11. Nxc6 {[%emt 0:02:14]} Qxc6 {[%emt 0:00:34]} 12. Bh6 {[%emt 0:01:29]} Nh5 {[%emt 0:00:39]} 13. Qf3 {[%emt 0:03:55]} Qxc4 {[%emt 0:02:25]} 14. Qxh5 {[%emt 0:00:06]} gxh6 {[%emt 0:02:52]} 15. Rd3 {[%emt 0:00:28]} Kh8 {[%emt 0:02:05]} 16. f4 {[%emt 0:04:01]} Bd7 {[%emt 0:01:21]} 17. Re1 {[%emt 0:00:21]} Be8 {[%emt 0:00:27]} 18. Qxh6 {[%emt 0:01:53]} Rg8 {[%emt 0:00:02]} 19. Rh3 {[%emt 0:00:00]} Rg7 {[%emt 0:00:00]} 20. Kb1 {[%emt 0:00:00]} Qd4 {[%emt 0:00:07]} 21. e5 {[%emt 0:00:00]} dxe5 {[%emt 0:00:11]} 22. fxe5 {[%emt 0:00:00]} Bg5 {[%emt 0:00:05]} 23. Qh5 {[%emt 0:00:05]} f5 {[%emt 0:00:05]} 24. Qe2 {[%emt 0:00:06]} Qd2 {[%emt 0:00:06]} 25. Qf1 {[%emt 0:00:06]} Bc6 {[%emt 0:00:03]} 26. Re2 {[%emt 0:00:06]} Qf4 {[%emt 0:00:04]} 27. Rf3 {[%emt 0:00:02]} Bxf3 {[%emt 0:00:03]} 28. gxf3 {[%emt 0:00:02]} Rd8 {[%emt 0:00:02]} 0-1

[Event "Grand Prix Romania 1st Stage 2024"]
[Site "Bucuresti"]
[Date "2024.03.23"]
[Round "3.35"]
[White "Shuvalova, Polina"]
[Black "Prelipcean, Eric-Matei"]
[Result "1-0"]
[ECO "B90"]
[WhiteElo "2455"]
[BlackElo "2103"]
[Annotator "TA"]
[PlyCount "81"]
[EventDate "2024.03.20"]
[EventType "swiss"]
[EventCountry "ROU"]
[SourceTitle "playchess.com"]
[Source "ChessBase"]
[SourceQuality "1"]
[TimeControl "900+5"]

{[%evp 15,81,12,11,0,18,15,16,21,66,71,75,74,75,73,85,63,122,114,129,116,133,109,114,117,118,93,130,144,150,150,150,155,150,145,200,194,297,227,229,234,361,351,341,197,255,205,199,72,185,73,201,201,201,193,214,215,255,256,261,264,260,251,377,360,1020,635,1509,1362]} 1. e4 {[%emt 0:00:01]} c5 {[%emt 0:00:01]} 2. Nf3 {[%emt 0:00:02][%cal Bg1f3,Bf3d4,Bd4e2,Be2g3][%mdl 32]} d6 {[%emt 0:00:02]} 3. d4 {[%emt 0:00:04]} cxd4 {[%emt 0:00:02]} 4. Nxd4 {[%emt 0:00:02]} Nf6 {[%emt 0:00:01]} 5. Nc3 {[%emt 0:00:02]} a6 {[%emt 0:00:01]} 6. Bd3 {[%emt 0:00:02]} e5 {[%emt 0:00:08]} 7. Nde2 {[%emt 0:00:02]} Be7 {[%emt 0:00:05]} 8. O-O {[%emt 0:00:03]} O-O {[%emt 0:00:12]} 9. Ng3 {[%emt 0:00:09]} b5 {[%emt 0:00:46][%cal Bb7b5,Bb5b4][%mdl 32]} 10. Qe2 {[%emt 0:01:11]} Re8 {[%emt 0:02:36]} 11. Bg5 {[%emt 0:00:25] The position is equal.} h6 {[%emt 0:01:35]} 12. Bxf6 {[%emt 0:01:05]} Bxf6 {[%emt 0:00:02]} 13. a4 {[%emt 0:00:02]} b4 {[%emt 0:00:28]} 14. Nd5 {[%emt 0:00:02]} Nc6 {[%emt 0:00:04]} 15. a5 {[%emt 0:00:58]} Bb7 {[%emt 0:00:55]} (15... g6 $14) 16. Ra4 {[%emt 0:00:50]} Nd4 {[%emt 0:01:06]} 17. Nxf6+ {[%emt 0:00:33]} Qxf6 {[%emt 0:00:10]} 18. Qd2 {[%emt 0:00:04]} Nc6 {[%emt 0:01:26]} 19. Bc4 {[%emt 0:00:06]} Rac8 {[%emt 0:01:19][%cal Oc6a5]} 20. Qd3 {[%emt 0:00:18]} Red8 {[%emt 0:01:19][%cal Od6d5,Be8d8,Bd8d7,Bd7b7][%mdl 32]} 21. Nf5 {[%emt 0:00:33]} Ra8 {[%emt 0:01:02]} 22. Rd1 {[%emt 0:00:23]} Rd7 {[%emt 0:00:53]} 23. Ne3 {[%emt 0:00:21] White is much more active.} (23. Nxd6 Rad8 24. Nxf7 (24. Bxa6 $2 Bxa6 25. Qxa6 Rxd6 $19) (24. Ne8 $2 Qe7 $19) 24... Rxd3 (24... Rxf7 25. Bxf7+ Qxf7 26. Qf3 $17) 25. Nxd8+ Kh7 26. Rxd3 Nxd8 27. Rxb4 Bxe4 $15) 23... Qd8 {[%emt 0:00:10]} 24. Rda1 {[%emt 0:00:10]} Nd4 {[%emt 0:01:07]} (24... Ne7 $16) 25. Rxb4 $18 {[%emt 0:00:11]} Qh4 {[%emt 0:00:16]} (25... Nc6 {keeps fighting.}) 26. Rxb7 {[%emt 0:00:55]} Rxb7 {[%emt 0:00:15]} 27. Bd5 {[%emt 0:00:01]} (27. Bxa6 Rba7 (27... Rxb2 28. Bc4 $11) 28. Bc4 (28. g3 $2 Qh3 $19) 28... Rxa5 $11) 27... Rab8 {[%emt 0:00:22]} (27... Qe7 $142 28. c3 (28. Bxb7 Qxb7 29. Rb1 Qc6 $18) 28... Ne6) 28. Bxb7 {[%emt 0:00:02]} ({Stronger than} 28. Qxa6 Rxb2 29. Qf1 Qe7 $11 (29... Nxc2 $2 30. Nxc2 Rxc2 31. a6 $18)) 28... Rxb7 {[%emt 0:00:01]} 29. b3 {[%emt 0:01:04]} (29. Qxa6 $142 Rxb2 30. Qc8+ (30. Qxd6 Qxe4 31. Qa3 Rb8 $16) (30. Qd3 Qe7 $18) 30... Kh7 31. a6) 29... Rb5 {[%emt 0:00:02]} (29... Nb5 $142 30. h3 Qd8) 30. h3 {[%emt 0:00:22][%cal Ob3b4]} Qd8 {[%emt 0:00:04]} 31. Qd2 {[%emt 0:00:20]} (31. b4 $1 $18) 31... Qc7 {[%emt 0:00:01]} (31... Qh4 $16) 32. b4 {[%emt 0:00:21]} (32. f3 $18 {has better winning chances.}) 32... Qc6 {[%emt 0:00:08] A mistake that costs the game.} (32... Qc3 $16 {was worth a try.} 33. Qxc3 Ne2+ 34. Kf1 Nxc3) 33. f3 {[%emt 0:00:17]} Rb8 {[%emt 0:00:02][%cal Bb5b8,Bb8c8,Bc8d8][%mdl 32]} 34. Rd1 {[%emt 0:00:25]} Rc8 {[%emt 0:00:48]} 35. Nd5 {[%emt 0:00:03]} Kf8 {[%emt 0:00:05] Prevents Ne7} 36. c3 {[%emt 0:00:03]} Nb5 {[%emt 0:00:01]} 37. Kh2 {[%emt 0:00:11]} Rd8 {[%emt 0:00:12]} 38. Qe3 {[%emt 0:00:04]} Qc4 {[%emt 0:00:09]} (38... Rb8 $142 39. f4 Rc8 40. fxe5 dxe5) 39. Qb6 {[%emt 0:00:06][%csl LRa6,LRd8]} Ke8 {[%emt 0:00:02]} (39... Ra8 40. Qb7 Qc8 41. Qe7+ Kg8) 40. Qxa6 {[%emt 0:00:12]} Qe2 {[%emt 0:00:01] [#]} 41. Qxb5+ $3 {[%emt 0:00:04][%mdl 512] Weighted Error Value: White=0.42/Black=0.39.  Mistake:       	White=3     	Black=9      Inaccurate:     	White=1     	Black=3      OK:         	White=15    	Black=6      Best:        	White=3     	---} 1-0

[Event "Grand Prix Romania 1st Stage 2024"]
[Site "Bucuresti"]
[Date "2024.03.23"]
[Round "3.36"]
[White "Filip, Andrei"]
[Black "Efroimski, Marsel"]
[Result "1-0"]
[ECO "C02"]
[WhiteElo "2289"]
[BlackElo "2467"]
[Annotator "TA"]
[PlyCount "89"]
[EventDate "2024.03.20"]
[EventType "swiss"]
[EventCountry "ROU"]
[SourceTitle "playchess.com"]
[Source "ChessBase"]
[SourceQuality "1"]
[TimeControl "900+5"]

{[%evp 11,89,-6,-8,0,30,-2,5,12,8,8,13,16,7,4,17,-18,11,16,32,0,0,12,0,-12,15,10,15,-32,4,0,17,18,28,5,14,-104,24,0,70,42,75,21,68,72,79,65,125,29,21,8,40,28,19,10,15,18,92,71,67,0,0,0,970,955,29991,1027,29963,64,29965,29966,29965,29966,11640,12280,6379,6303,5716,5414,2165,1486]} 1. e4 {[%emt 0:00:02]} e6 {[%emt 0:00:00]} 2. d4 {[%emt 0:00:04]} d5 {[%emt 0:00:01]} 3. e5 {[%emt 0:00:01]} c5 {[%emt 0:00:02]} 4. c3 {[%emt 0:00:01]} Nc6 {[%emt 0:00:01]} 5. Nf3 {[%emt 0:00:03]} Nge7 {[%emt 0:00:01]} 6. Na3 {[%emt 0:00:04]} Nf5 {[%emt 0:00:08]} 7. Nc2 {[%emt 0:00:05]} Bd7 {[%emt 0:00:01]} 8. Be2 {[%emt 0:00:08]} Be7 {[%emt 0:00:16]} 9. O-O {[%emt 0:00:38] The position is equal.} cxd4 {[%emt 0:00:05]} 10. cxd4 {[%emt 0:00:03]} O-O {[%emt 0:00:08]} 11. Bd3 {[%emt 0:00:47]} f6 {[%emt 0:00:16]} 12. Bxf5 {[%emt 0:01:13]} exf5 {[%emt 0:00:01]} 13. Bf4 {[%emt 0:00:33]} Be8 {[%emt 0:01:55]} 14. exf6 {[%emt 0:00:36]} Bxf6 {[%emt 0:00:06]} 15. Ne5 {[%emt 0:00:10]} g5 {[%emt 0:00:15]} 16. Nxc6 {[%emt 0:00:19]} bxc6 {[%emt 0:00:33]} 17. Bd2 {[%emt 0:01:44]} f4 {[%emt 0:00:14]} 18. Bb4 {[%emt 0:00:26]} Rf7 {[%emt 0:00:05]} 19. f3 {[%emt 0:00:49]} (19. Ne1 $11) 19... Bd7 {[%emt 0:00:46]} 20. Bc5 {[%emt 0:00:20]} Bf5 {[%emt 0:00:02]} 21. Nb4 {[%emt 0:00:14]} Qc7 {[%emt 0:02:22]} 22. Re1 {[%emt 0:00:43]} Rg7 {[%emt 0:00:23]} 23. Qa4 {[%emt 0:00:21]} (23. Nd3 $11 {remains equal.}) 23... Bd7 {[%emt 0:00:34] This pair of bishops is nice.} (23... Rc8 $17 {Threatens to win with ...a5.} 24. Qa6 Qd7) 24. Kh1 {[%emt 0:03:25]} h5 {[%emt 0:01:29]} (24... g4 $11) 25. Nd3 {[%emt 0:00:33]} g4 {[%emt 0:00:05] [#]} 26. Ne5 {[%emt 0:00:19]} ({White should play} 26. Qa3 $1 $16) 26... Kh8 {[%emt 0:00:59]} (26... Re8 $11 {feels stronger.}) 27. Qa3 $14 {[%emt 0:00:46]} Qd8 {[%emt 0:01:07] Prevents Bf8.} 28. Bd6 {[%emt 0:00:46] White has more active pieces.} ({And not} 28. Bxa7 Bxe5 29. dxe5 (29. Rxe5 $2 Qh4 $19) 29... gxf3 $17) 28... Kg8 {[%emt 0:02:35]} (28... Bf5 $1 $14) 29. Nxd7 {[%emt 0:00:21]} (29. fxg4 $16 hxg4 30. Rf1) 29... Qxd7 $11 {[%emt 0:00:07]} 30. Be5 {[%emt 0:00:05]} Rf8 {[%emt 0:00:45]} 31. Bxf6 {[%emt 0:00:08]} Rxf6 {[%emt 0:00:02]} 32. Re5 {[%emt 0:00:03]} h4 {[%emt 0:00:33]} 33. Rae1 {[%emt 0:00:42]} h3 {[%emt 0:00:05]} (33... gxf3 $1 $11 {keeps the balance.} 34. Qxf3 Qg4) 34. Re8+ {[%emt 0:00:07]} (34. gxh3 {simplifies} gxf3 35. Qxf3 Qf7 36. Re8+) 34... Kh7 {[%emt 0:00:01][%cal Bg8h7,Bh7h6,Bh6h5,Bh5g5][%mdl 32]} 35. R1e5 {[%emt 0:00:42]} (35. gxh3 $14 gxf3 36. Qxf3) 35... hxg2+ {[%emt 0:00:04]} 36. Kg1 $1 {[%emt 0:00:01] Strongly threatening Qd3+. Chess con chili.} Qf7 $2 {[%emt 0:00:49][%mdl 8192]} (36... gxf3 $11 37. Qxf3 Qg4 38. Qxg4 Rxg4 39. R5e7+ Rg7 (39... Kh6 $2 40. Rh8+ Kg5 41. Re5+ Rf5 42. h4+ Rxh4 43. Rg8+ Kf6 44. Rf8+ Kg7 45. Rexf5 $18) 40. Rxg7+ Kxg7 41. Kxg2 a5) 37. Qd3+ $18 {[%emt 0:00:06]} Kh6 {[%emt 0:01:06]} 38. Rh8+ {[%emt 0:00:02]} ({Weaker is} 38. Kxg2 Rg8 39. R8e7 Qg6 40. Qxg6+ Rgxg6 $14) 38... Rh7 {[%emt 0:00:01]} 39. Rxh7+ {[%emt 0:00:02]} Qxh7 {[%emt 0:00:01] [#] Loses the game.} 40. Rh5+ $3 {[%emt 0:00:00][%mdl 512]} Kxh5 {[%emt 0:00:04]} 41. Qxh7+ {[%emt 0:00:01] KQ-KR} Kg5 {[%emt 0:00:05]} 42. Qg7+ {[%emt 0:00:13] White is clearly winning.} Rg6 {[%emt 0:00:02]} 43. Qe5+ {[%emt 0:00:01]} Kh6 {[%emt 0:00:15]} 44. Qxf4+ {[%emt 0:00:02]} Kg7 {[%emt 0:00:01]} 45. fxg4 {[%emt 0:00:04] Weighted Error Value: White=0.22 (precise) /Black=0.52.  Loses game:     	---       	Black=1      Mistake:       	White=5     	Black=5      Inaccurate:     	White=3     	Black=7      OK:         	White=11    	Black=6      Best:        	White=1     	Black=2      Strong:       	White=1     	---} 1-0

[Event "Grand Prix Romania 1st Stage 2024"]
[Site "Bucuresti"]
[Date "2024.03.23"]
[Round "3.37"]
[White "Manolache, Marius"]
[Black "Vasilescu, Lucian-Mihail"]
[Result "1-0"]
[ECO "D02"]
[WhiteElo "2387"]
[BlackElo "2116"]
[Annotator "RC"]
[PlyCount "63"]
[EventDate "2024.03.20"]
[EventType "swiss"]
[EventCountry "ROU"]
[SourceTitle "playchess.com"]
[Source "ChessBase"]
[SourceQuality "1"]
[TimeControl "900+5"]

1. d4 {[%emt 0:00:04]} d5 {[%emt 0:00:00]} 2. Nf3 {[%emt 0:00:07]} Nf6 {[%emt 0:00:03]} 3. Bf4 {[%emt 0:00:02]} c5 {[%emt 0:00:14]} 4. e3 {[%emt 0:00:03]} e6 {[%emt 0:00:02]} 5. c3 {[%emt 0:00:46]} Bd6 {[%emt 0:00:07]} 6. Bg3 {[%emt 0:00:07]} O-O {[%emt 0:00:29]} 7. Bd3 {[%emt 0:00:25]} Nc6 {[%emt 0:00:15]} 8. Nbd2 {[%emt 0:00:12]} b6 {[%emt 0:00:24]} 9. a3 {[%emt 0:00:16]} Qc7 {[%emt 0:01:38]} 10. e4 {[%emt 0:01:59]} dxe4 {[%emt 0:03:18]} 11. Nxe4 {[%emt 0:00:04]} Nxe4 {[%emt 0:00:06]} 12. Bxe4 {[%emt 0:00:02]} f5 {[%emt 0:00:00]} 13. Bxd6 {[%emt 0:06:48]} Qxd6 {[%emt 0:00:02]} 14. Bxc6 {[%emt 0:00:20]} Qxc6 {[%emt 0:00:02]} 15. O-O {[%emt 0:00:03]} Bb7 {[%emt 0:00:37]} 16. Re1 {[%emt 0:00:04]} Rf6 {[%emt 0:00:31]} 17. dxc5 {[%emt 0:02:14]} Rg6 {[%emt 0:00:37]} 18. Re3 {[%emt 0:00:26]} Qxc5 {[%emt 0:01:22]} 19. Qe2 {[%emt 0:00:53]} Qc6 {[%emt 0:00:45]} 20. Re1 {[%emt 0:00:32]} Re8 {[%emt 0:00:20]} 21. Qd3 {[%emt 0:00:34]} h6 {[%emt 0:03:15]} 22. Kf1 {[%emt 0:00:10]} Kh7 {[%emt 0:00:50]} 23. c4 {[%emt 0:00:03]} Re7 {[%emt 0:00:07]} 24. Rd1 {[%emt 0:00:20]} Ba6 {[%emt 0:00:41]} 25. b3 {[%emt 0:00:01]} b5 {[%emt 0:00:01]} 26. Qd6 {[%emt 0:00:02]} Rc7 {[%emt 0:00:20]} 27. Qxc6 {[%emt 0:00:04]} Rxc6 {[%emt 0:00:01]} 28. Ne5 {[%emt 0:00:01]} Rb6 {[%emt 0:00:28]} 29. Nxg6 {[%emt 0:00:03]} Kxg6 {[%emt 0:00:01]} 30. c5 {[%emt 0:00:06]} b4+ {[%emt 0:00:02]} 31. Ke1 {[%emt 0:00:02]} Rb5 {[%emt 0:00:01]} 32. Rxe6+ {[%emt 0:00:52]} 1-0

[Event "Grand Prix Romania 1st Stage 2024"]
[Site "Bucuresti"]
[Date "2024.03.23"]
[Round "3.38"]
[White "Economescu, Valentin"]
[Black "Baltag, Iulian"]
[Result "0-1"]
[ECO "D94"]
[WhiteElo "2147"]
[BlackElo "2412"]
[Annotator "TA"]
[PlyCount "62"]
[EventDate "2024.03.20"]
[EventType "swiss"]
[EventCountry "ROU"]
[SourceTitle "playchess.com"]
[Source "ChessBase"]
[SourceQuality "1"]
[TimeControl "900+5"]

{[%evp 21,62,25,31,5,14,8,25,23,24,29,79,33,27,40,33,17,95,-28,0,-7,0,-72,-74,-106,-88,-81,-46,-36,-44,-116,-68,-27,-43,-148,-153,-830,-830,-779,-778,-758,-740,-691,135]} 1. Nf3 {[%emt 0:00:03]} d5 {[%emt 0:00:10]} 2. e3 {[%emt 0:00:06]} g6 {[%emt 0:00:06]} 3. c4 {[%emt 0:00:04]} c6 {[%emt 0:00:04]} 4. Nc3 {[%emt 0:00:03]} Bg7 {[%emt 0:00:04]} 5. d4 {[%emt 0:00:07]} Nf6 {[%emt 0:00:06]} 6. Bd3 {[%emt 0:00:16]} O-O {[%emt 0:00:11]} 7. O-O {[%emt 0:00:03]} Bg4 {[%emt 0:00:13]} 8. h3 {[%emt 0:00:07]} Bxf3 {[%emt 0:00:08]} 9. Qxf3 {[%emt 0:00:02]} dxc4 {[%emt 0:00:02]} 10. Bxc4 {[%emt 0:00:06]} Nbd7 {[%emt 0:00:03]} 11. Rd1 {[%emt 0:01:22]} e5 {[%emt 0:00:10]} 12. a3 {[%emt 0:02:00]} Qe7 {[%emt 0:00:24]} 13. b4 {[%emt 0:01:34]} e4 {[%emt 0:00:40]} 14. Qe2 {[%emt 0:00:09] White has an edge.} b5 {[%emt 0:00:05]} 15. Bb3 {[%emt 0:00:12]} a5 {[%emt 0:00:02]} (15... Nb6 $11 {keeps the balance.}) 16. bxa5 $16 {[%emt 0:02:16]} Rxa5 {[%emt 0:00:04]} 17. Bb2 {[%emt 0:00:03]} Nb6 {[%emt 0:00:32]} 18. d5 {[%emt 0:02:23]} cxd5 {[%emt 0:03:11]} (18... Nfxd5 $11 19. Bxd5 (19. Nxd5 cxd5 20. Bxd5 b4 $17) 19... Nxd5 20. Nxd5 cxd5) 19. Nxd5 {[%emt 0:01:51]} (19. Bxd5 $6 b4 20. axb4 Rxd5 21. Nxd5 Nbxd5 $11) (19. Nxb5 $16 {Strongly threatening Bc3.} Na4 20. Bd4 (20. Bxd5 $2 Nxb2 21. Qxb2 Nxd5 $19)) 19... Nfxd5 {[%emt 0:00:04]} 20. Bxd5 {[%emt 0:00:01] A strong pair of Bishops.} b4 {[%emt 0:02:38]} (20... Bxb2 {feels hotter.} 21. Qxb2 b4 22. Bb3 bxa3 23. Bxf7+ Qxf7 24. Qxb6 Raa8) 21. Bb3 {[%emt 0:02:53]} (21. Bxg7 $11 Kxg7 22. Qb2+ Kh6 23. Bc6) 21... bxa3 $17 {[%emt 0:00:59]} 22. Bd4 {[%emt 0:00:04]} Bxd4 {[%emt 0:01:50]} 23. Rxd4 {[%emt 0:00:01]} Nd7 {[%emt 0:00:03]} 24. Qd2 {[%emt 0:00:11]} Ra7 {[%emt 0:00:01]} 25. Qc2 {[%emt 0:00:31] Against Rc8} ({Better is} 25. Ra4 $1 $15 Rxa4 26. Bxa4) 25... Nc5 {[%emt 0:00:41]} (25... Nf6 $17 26. Qc3 Rfa8) 26. Bd5 $15 {[%emt 0:00:11]} Rb8 {[%emt 0:00:08]} 27. Rc4 {[%emt 0:00:08]} (27. Qc3 $1 $15) 27... Qe5 $36 {[%emt 0:00:25][%csl LRa1,LRd5][%mdl 2048] Black has strong initiative.} 28. Rd1 {[%emt 0:00:14] [#] This move loses the game for White.} (28. Rd4 $17 Ne6 29. Qxe4 Qxe4 30. Rxe4) 28... a2 $1 $19 {[%emt 0:00:50] Black is clearly winning.} 29. Rxc5 {[%emt 0:00:02]} (29. Bxf7+ Kxf7) 29... a1=Q {[%emt 0:00:40]} (29... a1=B $2 {too greedy.} 30. Bxf7+ (30. Qxe4 Qxe4 31. Bxe4 Bf6 $18) (30. Bxe4 Qe7 $16) 30... Rxf7 31. Rxe5 Bxe5 32. Qxe4 $18) 30. Bxf7+ {[%emt 0:00:25]} Rxf7 {[%emt 0:00:10]} 31. Rxe5 {[%emt 0:00:12]} Qb2 $2 {[%emt 0:02:56][%mdl 32768] Weighted Error Value: White=0.55/Black=0.19 (very precise) .  Loses game:     	White=1     	---        Mistake:       	White=4     	Black=3      Inaccurate:     	White=1     	Black=2      OK:         	White=4     	Black=4      Best:        	White=2     	Black=2     . Loss on time!?} (31... Qxe5 $19 32. Rd4 Rbf8) 0-1